Cogmind - Beta 16 *** ADVENTURER MODE // 2025.12.27 @ 01:13:55 Player: Lukysa Result: Destroyed by TJ-ZN3(h) with Bore Cannon Performance ------------- Evolutions (0) 0 Regions Visited (2) 400 Robots Destroyed (18) 90 Value Destroyed (462) 462 Prototype IDs (2) 40 Alien Tech Used (0) 0 Bonus (0) 0 TOTAL SCORE: 992 Bonus ------- None Cogmind --------- Core Integrity 0/250 Matter 300/300 Energy 250/250 System Corruption 0% Temperature Cool (0) Movement Rolling (95) Ox1 Location -10/Mines Parts ------- > --- POWER (1) -------- Ion Engine > --- PROPULSION (2) --- Wheel Wheel > --- UTILITY (2) ------ Large Storage Unit Hardened Light Armor Plating > --- WEAPON (2) ------- Particle Gun Light Assault Rifle > --- INVENTORY (15) --- Ion Engine Light Ion Engine Light Nuclear Core Wheel Wheel Improved Heat Sink High-capacity Matter Pod (200) ECM Suite Light Armor Plating Hardened Light Armor Plating Hardened Light Armor Plating Particle Gun Particle Gun Assault Rifle Light Assault Rifle Peak State ------------ > --- POWER ------------ Ion Engine > --- PROPULSION ------- Wheel Wheel > --- UTILITY ---------- Large Storage Unit Hardened Light Armor Plating > --- WEAPON ----------- Particle Gun Particle Gun > --- INVENTORY -------- Ion Engine Light Ion Engine Wheel Wheel Wheel Hover Unit Light Armor Plating Hardened Light Armor Plating Hardened Light Armor Plating Particle Gun Particle Gun Assault Rifle Light Assault Rifle Light Assault Rifle [Rating: 11] Favorites ----------- Power Ion Engine Engine Ion Engine Propulsion Wheel Wheel Wheel Utility Hardened Light Armor Plating Storage Large Storage Unit Protection Hardened Light Armor Plating Weapon Particle Gun Energy Gun Particle Gun Ballistic Gun Assault Rifle Build | -11 -10 -10 ------- Run | Yrd Mat Min Slots Evolved . | . . . Power . | . . . Propulsion . | . . . Utility . | . . . Weapon . | . . . Parts Attached 18 | 6 9 3 Power 4 | 1 1 2 Engine 4 | 1 1 2 Core . | . . . Reactor . | . . . Propulsion 4 | 2 2 . Treads . | . . . Leg . | . . . Wheel 4 | 2 2 . Hover . | . . . Flight . | . . . Utility 3 | 1 2 . Device . | . . . Storage 2 | 1 1 . Processor . | . . . Hackware . | . . . Protection 1 | . 1 . Artifact . | . . . Weapon 7 | 2 4 1 Energy Gun 4 | 1 3 . Energy Cannon . | . . . Ballistic Gun 3 | 1 1 1 Ballistic Cannon . | . . . Launcher . | . . . Special Weapon . | . . . Impact Weapon . | . . . Slashing Weapon . | . . . Piercing Weapon . | . . . Special Melee Weapon . | . . . Unidentified Prototypes . | . . . Parts Lost 4 | . 2 2 Power 2 | . . 2 Propulsion 1 | . 1 . Utility . | . . . Weapon 1 | . 1 . Highest Loss Streak 2 | . 2 2 To Critical Strikes . | . . . Average Backups 12 | 1 12 14 Power 2 | . 1 2 Propulsion 2 | . 2 2 Utility 3 | . 3 6 Weapon 4 | . 4 4 Tool/Special . | . . . Unused Backups 16 | . 4 12 Power 4 | . 1 3 Propulsion 3 | . 1 2 Utility 7 | . 1 6 Weapon 2 | . 1 1 Tool/Special . | . . . Average Slot Usage (%) 99 | . 99 99 Engine 13 | . 14 13 Wheel 27 | . 27 28 Storage 14 | . 14 14 Protection 13 | . 13 14 Energy Gun 11 | . 10 14 Ballistic Gun 16 | . 16 14 Peak Build Rating 11 | 6 11 11 Average Rating 9 | 4 9 10 On Entrance 5 | . 6 11 Avg Prop Armor Cover (%) . | . . . Naked Turns . | . . . Heaviest Build 36 | 12 36 35 Greatest Support 26 | 26 26 20 Greatest Overweight (x) 1 | . 1 1 Average Overweight (x) . | . . 1 Largest Inventory Capacity 15 | 8 15 15 Average Capacity 13 | 6 14 15 Most Carried 15 | 2 15 15 Average Carried 12 | 1 12 14 Final Capacity 15 | 8 15 15 Final Carried 15 | 2 15 15 Class Distribution -------------------- 100% | Mutant Dominant Class ---------------- Mutant | -10/Materials Mutant | -10/Mines Resources | -11 -10 -10 ----------- Run | Yrd Mat Min Matter Collected 902 | 153 634 115 Remotely . | . . . Salvage Created 636 | . 547 89 Parts 36 | . 30 6 Haulers Intercepted 1 | . 1 . Recyclers Shooed . | . . . Parts Field Recycled . | . . . Retrieved Matter . | . . . Parts Self-Destructed . | . . . Prevented . | . . . Parts Restored . | . . . Kills | -11 -10 -10 ------- Run | Yrd Mat Min Combat Hostiles Destroyed 12 | . 10 2 Guns 12 | . 10 2 Classes Destroyed 6 | . 5 1 Tunneler 1 | . . 1 Hauler 1 | . 1 . Recycler 1 | . 1 . Watcher 3 | . 3 . Swarmer 2 | . 2 . Grunt 10 | . 8 2 Best Kill Streak 4 | . 4 2 Combat Bots Only 2 | . 2 2 Max Kills in Single Turn 1 | . 1 1 Gunslinging . | . . . Exploded . | . . . Melee . | . . . Uniques/NPCs Destroyed . | . . . Combat | -11 -10 -10 -------- Run | Yrd Mat Min Hostile Shots Fired 98 | . 73 25 Missed 25 | . 22 3 Hits 73 | . 51 22 Projectile 73 | . 51 22 Damage Taken 709 | . 479 230 Core 255 | . 188 67 Absorbed by Shields . | . . . Ignored by Resistances 194 | . 123 71 Core Remaining (%) 100 | 100 . . Volleys Fired 66 | . 53 13 Largest 2 | . 2 2 Hottest 130 | . 130 85 Shots Fired 122 | . 100 22 Gun 122 | . 100 22 Cannon . | . . . Launcher . | . . . Special . | . . . Kinetic 69 | . 56 13 Thermal 53 | . 44 9 Explosive . | . . . Electromagnetic . | . . . Robot Hit Streak 9 | . 9 9 Robot Miss Streak 2 | . 2 2 Penetration Max . | . . . Secondary Targets 3 | . 2 1 Max Gunslinging Chain 1 | . 1 1 Shots Hit Robots 76 | . 58 18 Core Hits 27 | . 20 7 Critical Kills . | . . . Critical Parts Destroyed . | . . . Critical Strikes 1 | . . 1 Burn 1 | . . 1 Melee Attacks . | . . . Impact . | . . . Slashing . | . . . Piercing . | . . . Sneak Attacks . | . . . Combat Hostiles . | . . . Follow-up Attacks . | . . . Damage Inflicted 1061 | . 846 215 Guns 1061 | . 846 215 Cannons . | . . . Explosions . | . . . Melee . | . . . Ramming . | . . . Kinetic 470 | . 375 95 Thermal 591 | . 471 120 Explosive . | . . . Electromagnetic . | . . . Impact . | . . . Slashing . | . . . Piercing . | . . . Highest Corruption . | . . . Average Corruption . | . . . Corruption Purged . | . . . Corruption Blocked . | . . . Overload Shots . | . . . Overflow Damage . | . . . Projectiles . | . . . Explosions . | . . . Melee . | . . . Knockbacks . | . . . Impact . | . . . Kinetic . | . . . Secondary . | . . . Self-Inflicted Damage . | . . . Shots . | . . . Rammed . | . . . Targets Rammed . | . . . Kicked . | . . . Crushed . | . . . Highest Temperature 743 | . 743 446 Average Temperature 175 | . 163 226 Received Heat Transfer 336 | . 183 153 Effects 24 | . 20 4 Shutdowns 2 | . 2 . Energy Bleed 1 | . 1 . Interference 8 | . 5 3 Matter Decay 5 | . 5 . Short Circuit 1 | . 1 . Damage (minor) 1 | . . 1 Damage (major) 4 | . 4 . Damage (core) 2 | . 2 . Siege Activations . | . . . Martial Activations . | . . . Shielding Activations . | . . . Robots Disrupted . | . . . Combat Hostiles . | . . . Robots Corrupted . | . . . Combat Hostiles . | . . . Parts Fried . | . . . Impact Corruptions . | . . . Robots Melted . | . . . Combat Hostiles . | . . . Parts Melted 3 | . 3 . Heat Transferred 1480 | . 1110 370 Parts Sabotaged . | . . . Parts Stolen . | . . . Parts Stripped . | . . . Power Chain Reactions . | . . . Alert | -11 -10 -10 ------- Run | Yrd Mat Min Maximum Alert Level . | . . . Low Security (%) 100 | 100 100 100 Level 1 . | . . . Level 2 . | . . . Level 3 . | . . . Level 4 . | . . . Level 5 . | . . . High Security . | . . . Max Security . | . . . Peak Influence 58 | . 58 40 Initial 11 | . . 11 Average 15 | . 18 7 Influence Increases 358 | . 303 55 Destroy 0b10 Robot/C 240 | . 200 40 Destroy 0b10 Robot/NC 30 | . 25 5 Destroy Leader 58 | . 48 10 Successful Hack 13 | . 13 . Destroy Structure 2 | . 2 . Lose Combat Pursuer 15 | . 15 . Influence Decreases 358 | . 267 91 Entered New Map 25 | . . 25 Time Decay 293 | . 247 46 Lost Part 40 | . 20 20 Squads Dispatched 1 | . 1 . Investigation 1 | . 1 . Extermination . | . . . Reinforcement . | . . . Assault . | . . . Garrison . | . . . Intercept . | . . . Searches Triggered . | . . . Construction Impeded . | . . . Haulers Reinforced . | . . . Active Scanning Responses . | . . . Cargo Convoy Interrupts . | . . . Stealth | -11 -10 -10 --------- Run | Yrd Mat Min Distress Signals . | . . . Communications Jammed . | . . . Distress Signals . | . . . Times Spotted 20 | . 16 4 Peak Tracking Total 3 | . 3 2 Tactical Retreats 1 | . 1 . Traps | -11 -10 -10 ------- Run | Yrd Mat Min Traps Triggered 1 | . 1 . Indirectly . | . . . Trap Hack Attempts . | . . . Triggered . | . . . Disarmed . | . . . Reprogrammed . | . . . Reused . | . . . Traps Extracted . | . . . Installed . | . . . Triggered . | . . . Machines | -11 -10 -10 ---------- Run | Yrd Mat Min Machines Disabled . | . . . Max in Single Turn . | . . . Machines Repaired . | . . . Machines Dismantled . | . . . Machines Sabotaged . | . . . Overloaded Fab Kills . | . . . Hacking | -11 -10 -10 --------- Run | Yrd Mat Min Machines Accessed 7 | . 7 . Terminals 5 | . 5 . Fabricators . | . . . Repair Stations . | . . . Recycling Units 2 | . 2 . Scanalyzers . | . . . Garrison Access . | . . . Total Hacks 16 | . 16 . Successful 12 | . 12 . Failed 4 | . 4 . Catastrophic . | . . . Database Lockouts . | . . . Manual . | . . . Terminals 12 | . 12 . Fabricators . | . . . Repair Stations . | . . . Recycling Units 4 | . 4 . Scanalyzers . | . . . Garrison Access . | . . . Terminal Hacks 8 | . 8 . Prototype ID Bank 1 | . 1 . Branch Access Points 1 | . 1 . Alert Level 2 | . 2 . Locate Traps 3 | . 3 . Zone Layout 1 | . 1 . Fabricator Hacks . | . . . Repair Station Hacks . | . . . Recycling Unit Hacks 4 | . 4 . Report Inventory 2 | . 2 . Retrieve Components 2 | . 2 . Scanalyzer . | . . . Garrison Access Hacks . | . . . Unauthorized Hacks . | . . . Terminals . | . . . Fabricators . | . . . Repair Stations . | . . . Recycling Units . | . . . Scanalyzers . | . . . Garrison Access . | . . . Data Cores Recovered . | . . . Used . | . . . Hacking Detections 5 | . 5 . Full Trace Events . | . . . Feedback Events . | . . . Feedback Blocked . | . . . Robot Schematics Acquired . | . . . Robots Built . | . . . Authchips . | . . . Time . | . . . Total Robot Build Rating . | . . . Part Schematics Acquired . | . . . Parts Built . | . . . Authchips . | . . . Time . | . . . Total Part Build Rating . | . . . Part Studies Acquired . | . . . Parts Repaired . | . . . Time . | . . . Parts Recycled . | . . . Recycled Matter . | . . . Retrieved Matter . | . . . Retrieved Components 9 | . 9 . Parts Scanalyzed . | . . . Part Schematics Acquired . | . . . Parts Damaged . | . . . Bothacking | -11 -10 -10 ------------ Run | Yrd Mat Min Used RIF Installer . | . . . Robots Hacked . | . . . Non-combat . | . . . Combat . | . . . Robot Hacks Applied . | . . . Relay Couplers Released . | . . . Fabnet Peak Effective % . | . . . Robots Rewired . | . . . Allies Hacked . | . . . Hacks Repelled . | . . . Allies | -11 -10 -10 -------- Run | Yrd Mat Min Total Allies . | . . . Largest Group . | . . . Highest-Rated Group . | . . . Highest-Rated Ally . | . . . Total Orders . | . . . Ally Attacks . | . . . Total Damage . | . . . Kills . | . . . Allies Corrupted . | . . . Allies Melted . | . . . Intel | -11 -10 -10 ------- Run | Yrd Mat Min Active Infowar (turns) . | . . . Robot Analysis Total . | . . . Derelict Logs Recovered . | . . . Drone Launches . | . . . Drone Recoveries . | . . . Exploration | -11 -10 -10 ------------- Run | Yrd Mat Min Turns Passed 1055 | 52 778 225 Spaces Moved 795 | 50 549 196 Core 8 | 8 . . Treads . | . . . Legs . | . . . Wheels 787 | 42 549 196 Hover . | . . . Flight . | . . . Fastest Speed 50 | 50 90 95 Average Speed 94 | 83 94 95 Slowest Speed 105 | 90 105 95 Overloaded Moves . | . . . Propulsion Burnouts . | . . . Robots Hopped . | . . . Potential Cave-ins . | . . . Cave-ins Triggered . | . . . Exploration Rate (%) 38 | 3 66 46 Regions Visited 2 Branch Regions 1 Pre-discovered Areas . | . . . Known Exits Taken 1 | . 1 . Unknown Exits Taken 1 | 1 . . Scrap Searched . | . . . Spaces Dug . | . . . Terrain Destroyed . | . . . Melee . | . . . Projectile . | . . . AOE . | . . . Terrain Rammed . | . . . Walls Destroyed . | . . . Machines Disabled . | . . . Actions | -11 -10 -10 --------- Run | Yrd Mat Min Total 982 | 57 711 214 Wait 65 | . 65 . Move 793 | 49 548 196 Hop . | . . . Pick Up 27 | 2 23 2 Fast Attach 10 | 6 4 . Attach 5 | . 3 2 Detach . | . . . Swap 5 | . 4 1 Drop 11 | . 11 . Fire 66 | . 53 13 Melee . | . . . Ram . | . . . Kick . | . . . Crush . | . . . Escape Stasis . | . . . Rewire . | . . . Trap . | . . . Miscellaneous . | . . . Route ------- -11/Scrapyard -10/Materials (discovered 4 exits: [*Mat x2] / *Min x2) -10/Mines History --------- Turn | Location | Event 3 | -11/Scrapyard | Discovered new exit (range 16) 53 | -11/Scrapyard | Entered Materials 201 | -10/Materials | Discovered new exit (range 9) 318 | -10/Materials | Build established: Mutant 415 | -10/Materials | Core integrity fell below 50% 503 | -10/Materials | Identified exit to Mines 808 | -10/Materials | Discovered new exit (range 10) 831 | -10/Materials | Entered Mines 851 | -10/Mines | Met a Derelict bent on vengeance 851 | -10/Mines | Core integrity fell below 20% 1035 | -10/Mines | Assembled infested the area 1040 | -10/Mines | Assisted by a Guerilla fighting off Assembled 1056 | -10/Mines | Destroyed by TJ-ZN3(h) with Bore Cannon Last Messages --------------- 00867_ G-34 Mercenary destroyed. 00871_ Acquired Lgt. Nuclear Core. 00872_ Acquired 47 matter. 00875_ Acquired Ion Engine. 00876_ Acquired 30 matter. 00915_ Extracted 35 matter. 00998_ T-07 Excavator destroyed. 01001_ Acquired 3 matter. 01006_ K-01 Serf collects debris. 01035_ ALERT: Infestation in the mines, dispatching Demolisher response squad. 01040_ A derelict emerges from the shadows: "You need to get out of here! I've been tracking a group of Assembled to figure out where they're coming from, and they're closing on this area, come on!" 01054_ as-87852 sneak attacks. 01054_ TJ-ZN3(h): "I'll hold them off! Go on ahead or try to find another way!" 01054_ HV Slug penetrates Wall. Map ----- +----------------------------------------------------+ | ???????????????????????????????????? | | ???????????????????????????????????? | | ???????????????????????????????????? | | ???????????????????????????????????? | | ???????????????????????????????????? | | ???????????????????????????????????? | | ???????????????????????????????????? | | ???????????????????????????????????? | | ???????????????????????????????????? | | ???????????????????????????????????? | | ???????????????????????????????????? | | ???????????????????????????????????? | | ???????????????????????????????????? | | ???????????????????????????????????? | | ???????????????????????????????????? | | ????????????????????????????????##?? | | ????????????????????????????????# ?? | | ????????????????????????????????# ?? | | ????????????????????????????????# ?? | | ???????????????#????????????????# ?# | | ?????????????? #????????????????# ## | | ????????????## ?????????????????# | | ???????????? ????????###???????# | | ???????????? #???????## ###?????# | | ?????# ##### #???????# ##???## | | ?????# a a@$#???????# ##??# | | ?????# ###;h##???????# #??# | | ?????????## #?????????# #?## | | ??????????# #########??# ### | | ??????????# #??# ## # | | ??????????######### #??# ## ## | | ??????????????????# #?## ## | | ??????????????????# ### ## | | ??????????????????# ## | | ??????????????????##### """ ## | | ??????????????????????# """ ## | | ??????????????????????## """ ## | | ???????????????????????### # | | ?????????????????????????## # | | ??????????????????????????### ## | | ????????????????????????????#######? | | ???????????????????????????????????? | | ???????????????????????????????????? | | ???????????????????????????????????? | | ???????????????????????????????????? | | ???????????????????????????????????? | | ???????????????????????????????????? | | ???????????????????????????????????? | | ???????????????????????????????????? | | ???????????????????????????????????? | +----------------------------------------------------+ Best States ------------- Heat Dissipation 25 Energy Generation 10 Energy Capacity 250 Matter Stores 300 Matter Capacity 300 Sight Range 16 Terrain Scan Density 10 Armor Coverage 150 Resistance: KI 20 Resistance: TH 20 Resistance: EX 20 Resistance: EM 20 Resistance: I 20 Resistance: S 20 Resistance: P 20 Evasion (%) 50 Offensive Hacking 10 Item Schematics ----------------- None Robot Schematics ------------------ None Fabricated ------------ Nothing Repaired ---------- Nothing Studied --------- None Alien Tech Used ----------------- None Achievements -------------- None Challenges ------------ None Game ------ Seed OmegaTechParser Manual? 0 Play Time 00:14:31 Cumulative 90.0 hours Start 2025.12.27 @ 01:00:26 End 2025.12.27 @ 01:13:55 Sessions 1 Manual Loads 0 Difficulty Adventurer Special Mode None Game No. 51 Rogue 29 Adventurer 22 Explorer 0 Win Type - Total 0 Types 0/0/0/0/0/0/0/0/0/0 Lore% 31 Gallery% 43 Achievement% 31 Wizard Run 0 Options --------- Layout 1 ASCII 0 Keyboard 0 Movement Mouse Keybinds 0 Fullscreen 2 Font 32/SmallcapsGlow Map View 50x35 Zoom Use 0% Tactical HUD 1 Map Filters NONE Filters NONE Steam 1 RUN: 7c30c0bc-99ed-4e30-851a-d2f9f909b543